[Event "USA Junior-ch 2022"]
[Site "Saint Louis"]
[Date "2022.07.16"]
[Round "9.1"]
[White "Mishra, Abhimanyu"]
[Black "Brodsky, David"]
[Result "1-0"]
[ECO "B92"]
[WhiteElo "2553"]
[BlackElo "2496"]
[Annotator "ChessBase"]
[PlyCount "111"]
[EventDate "2022.07.07"]
[EventType "tourn"]
[EventCountry "USA"]
[SourceTitle "playchess.com"]
[Source "ChessBase"]
[SourceQuality "1"]
[TimeControl "40/5400+30:1800+30"]

1. e4 {[%emt 0:00:02]} c5 {[%emt 0:00:03]} 2. Nf3 {[%emt 0:00:06]} d6 {[%emt 0:00:03]} 3. d4 {[%emt 0:00:10]} cxd4 {[%emt 0:00:05]} 4. Nxd4 {[%emt 0:00:06]} Nf6 {[%emt 0:00:03]} 5. Nc3 {[%emt 0:00:10]} a6 {[%emt 0:00:03]} 6. Be2 {[%emt 0:00:08]} e5 {[%emt 0:00:07]} 7. Nb3 {[%emt 0:00:08]} Be7 {[%emt 0:00:06]} 8. Be3 {[%emt 0:00:11]} Be6 {[%emt 0:00:07]} 9. Nd5 {[%emt 0:00:55]} Nbd7 {[%emt 0:00:15]} 10. Qd3 {[%emt 0:00:23]} O-O {[%emt 0:00:11]} 11. a4 {[%emt 0:01:11]} Rc8 {[%emt 0:02:21]} 12. c4 {[%emt 0:06:18]} Nc5 {[%emt 0:09:14]} 13. Nxc5 {[%emt 0:02:36]} dxc5 {[%emt 0:00:40]} 14. O-O {[%emt 0:07:33]} Bxd5 {[%emt 0:04:49]} 15. exd5 {[%emt 0:02:43]} e4 {[%emt 0:01:22]} 16. Qd2 {[%emt 0:02:25]} Bd6 {[%emt 0:03:04]} 17. a5 {[%emt 0:03:40]} Nd7 {[%emt 0:02:18]} 18. f4 {[%emt 0:10:10]} exf3 {[%emt 0:01:05]} 19. Rxf3 {[%emt 0:00:56]} Qe7 {[%emt 0:06:33]} 20. Raf1 {[%emt 0:07:00]} Ne5 {[%emt 0:10:38]} 21. Rh3 {[%emt 0:10:23]} f5 {[%emt 0:01:22]} 22. Bg5 {[%emt 0:03:38]} Qc7 {[%emt 0:01:23]} 23. Bf4 {[%emt 0:07:44]} Rce8 {[%emt 0:02:02]} 24. Rb3 {[%emt 0:01:45]} Nf7 {[%emt 0:08:16]} 25. Bd3 {[%emt 0:04:20]} g6 {[%emt 0:02:24]} 26. Rb6 {[%emt 0:01:56]} Qe7 {[%emt 0:10:38]} 27. Kh1 {[%emt 0:10:06]} Bxf4 {[%emt 0:07:46]} 28. Qxf4 {[%emt 0:00:14]} Ne5 {[%emt 0:08:57]} 29. Bc2 {[%emt 0:02:15]} Qg7 {[%emt 0:04:57]} 30. Ba4 {[%emt 0:02:17]} Re7 {[%emt 0:03:15]} 31. d6 {[%emt 0:01:17]} Ref7 {[%emt 0:03:24]} 32. b4 {[%emt 0:06:44]} g5 {[%emt 0:02:37]} 33. Qf2 {[%emt 0:03:09]} Nxc4 {[%emt 0:01:11]} 34. Bb3 {[%emt 0:01:06]} Nxb6 {[%emt 0:00:35]} 35. axb6 {[%emt 0:00:20]} c4 {[%emt 0:02:22]} 36. Bxc4 {[%emt 0:00:01]} f4 {[%emt 0:00:41]} 37. d7 {[%emt 0:02:56]} Rd8 {[%emt 0:01:39]} 38. Qe2 {[%emt 0:01:38]} Kf8 {[%emt 0:01:45]} 39. Bxf7 {[%emt 0:00:30]} Qxf7 {[%emt 0:00:07]} 40. Qe5 {[%emt 0:00:29]} Rxd7 {[%emt 0:00:59]} 41. Qxg5 {[%emt 0:01:03]} Rd5 {[%emt 0:04:49]} 42. Qh6+ {[%emt 0:12:46]} Kg8 {[%emt 0:00:24]} 43. h3 {[%emt 0:00:24]} Rd4 {[%emt 0:13:06]} 44. Rc1 {[%emt 0:06:19]} Qe7 {[%emt 0:01:13]} 45. Qh5 {[%emt 0:00:51]} Qe6 {[%emt 0:03:11]} 46. Kh2 {[%emt 0:04:38]} h6 {[%emt 0:03:30]} 47. Qf3 {[%emt 0:01:22]} Qxb6 {[%emt 0:06:55]} 48. Rc8+ {[%emt 0:02:33]} Kh7 {[%emt 0:00:35]} 49. Qg4 {[%emt 0:02:01]} Rd8 {[%emt 0:00:24]} 50. Qf5+ {[%emt 0:00:20]} Kg7 {[%emt 0:00:08]} 51. Qe5+ {[%emt 0:00:18]} Kg6 {[%emt 0:01:39]} 52. Rc7 {[%emt 0:00:48]} Rg8 {[%emt 0:00:36]} 53. Re7 {[%emt 0:01:09]} Qd8 {[%emt 0:00:30]} 54. Re6+ {[%emt 0:00:46]} Kf7 {[%emt 0:00:21]} 55. Qf5+ {[%emt 0:00:11]} Kg7 {[%emt 0:00:02]} 56. Rg6+ {[%emt 0:00:18]} 1-0

[Event "USA Junior-ch 2022"]
[Site "Saint Louis"]
[Date "2022.07.17"]
[Round "9.2"]
[White "Espinosa, Pedro"]
[Black "Hong, Andrew"]
[Result "1/2-1/2"]
[ECO "D38"]
[WhiteElo "2130"]
[BlackElo "2504"]
[Annotator "ChessBase"]
[PlyCount "155"]
[EventDate "2022.07.07"]
[EventType "tourn"]
[EventCountry "USA"]
[SourceTitle "playchess.com"]
[Source "ChessBase"]
[SourceQuality "1"]
[TimeControl "40/5400+30:1800+30"]

1. d4 {[%emt 0:00:02]} Nf6 {[%emt 0:00:10]} 2. c4 {[%emt 0:00:45]} e6 {[%emt 0:00:06]} 3. Nf3 {[%emt 0:00:12]} d5 {[%emt 0:00:06]} 4. Nc3 {[%emt 0:00:06]} Bb4 {[%emt 0:00:04]} 5. cxd5 {[%emt 0:01:10]} exd5 {[%emt 0:00:06]} 6. Bg5 {[%emt 0:00:27]} h6 {[%emt 0:00:06]} 7. Bh4 {[%emt 0:01:14]} O-O {[%emt 0:00:07]} 8. e3 {[%emt 0:01:18]} Bf5 {[%emt 0:00:05]} 9. Be2 {[%emt 0:02:47]} Nbd7 {[%emt 0:00:09]} 10. O-O {[%emt 0:01:18]} c6 {[%emt 0:06:17]} 11. Qb3 {[%emt 0:01:46]} Qb6 {[%emt 0:03:55]} 12. Nd2 {[%emt 0:10:31]} Bd6 {[%emt 0:05:28]} 13. Rfc1 {[%emt 0:10:20]} Rfe8 {[%emt 0:03:54]} 14. a3 {[%emt 0:02:27]} Re6 {[%emt 0:09:53]} 15. Na4 {[%emt 0:03:39]} Qc7 {[%emt 0:03:36]} 16. Bg3 {[%emt 0:01:15]} Bxg3 {[%emt 0:02:33]} 17. hxg3 {[%emt 0:00:22]} h5 {[%emt 0:00:48]} 18. Nf3 {[%emt 0:06:22]} Rae8 {[%emt 0:02:11]} 19. Nc3 {[%emt 0:05:01]} Qb8 {[%emt 0:02:08]} 20. Qd1 {[%emt 0:02:06]} g6 {[%emt 0:11:06]} 21. b4 {[%emt 0:02:47]} b5 {[%emt 0:04:30]} 22. a4 {[%emt 0:02:49]} a6 {[%emt 0:00:17]} 23. a5 {[%emt 0:04:36]} Qd6 {[%emt 0:01:22]} 24. Qb3 {[%emt 0:02:34]} Kg7 {[%emt 0:10:29]} 25. Nd1 {[%emt 0:02:13]} Ne4 {[%emt 0:04:44]} 26. Bd3 {[%emt 0:02:43]} Qe7 {[%emt 0:03:46]} 27. Rc2 {[%emt 0:01:58]} g5 {[%emt 0:04:56]} 28. Rac1 {[%emt 0:01:56]} Rc8 {[%emt 0:01:11]} 29. Nd2 {[%emt 0:02:23]} Nxd2 {[%emt 0:07:05]} 30. Rxd2 {[%emt 0:00:19]} Bxd3 {[%emt 0:00:16]} 31. Rxd3 {[%emt 0:00:27]} Rh8 {[%emt 0:02:11]} 32. Rdc3 {[%emt 0:02:00]} Rhh6 {[%emt 0:00:17]} 33. Nb2 {[%emt 0:03:46]} h4 {[%emt 0:03:33]} 34. gxh4 {[%emt 0:02:24]} gxh4 {[%emt 0:00:26]} 35. Nd3 {[%emt 0:04:17]} Reg6 {[%emt 0:01:22]} 36. Nf4 {[%emt 0:05:14]} h3 {[%emt 0:01:07]} 37. Nxg6 {[%emt 0:04:22]} Rxg6 {[%emt 0:00:31]} 38. e4 {[%emt 0:00:36]} Rxg2+ {[%emt 0:04:08]} 39. Kf1 {[%emt 0:00:31]} Qxe4 {[%emt 0:00:56]} 40. Rxh3 {[%emt 0:02:34]} Rg6 {[%emt 0:00:56]} 41. Qf3 {[%emt 0:33:41]} Nf6 {[%emt 0:16:02]} 42. Qxe4 {[%emt 0:00:00]} Nxe4 {[%emt 0:00:55]} 43. Ke2 {[%emt 0:00:00]} Rg2 {[%emt 0:02:32]} 44. Rxc6 {[%emt 0:00:00]} Rxf2+ {[%emt 0:00:21]} 45. Ke3 {[%emt 0:00:00]} Rb2 {[%emt 0:03:48]} 46. Rh5 {[%emt 0:00:00]} Nd2 {[%emt 0:04:14]} 47. Rxd5 {[%emt 0:00:00]} Nc4+ {[%emt 0:00:14]} 48. Kf4 {[%emt 0:00:00]} Rxb4 {[%emt 0:00:30]} 49. Rxa6 {[%emt 0:00:00]} Rb1 {[%emt 0:03:09]} 50. Rc5 {[%emt 0:00:00]} Rd1 {[%emt 0:00:06]} 51. d5 {[%emt 0:00:00]} Rd4+ {[%emt 0:00:30]} 52. Kg3 {[%emt 0:00:00]} b4 {[%emt 0:01:41]} 53. Ra8 {[%emt 0:00:00]} b3 {[%emt 0:00:57]} 54. a6 {[%emt 0:00:00]} b2 {[%emt 0:01:06]} 55. Rb8 {[%emt 0:00:00]} Nd2 {[%emt 0:00:20]} 56. a7 {[%emt 0:00:53]} Ra4 {[%emt 0:01:04]} 57. Rcc8 {[%emt 0:01:38]} Rxa7 {[%emt 0:02:51]} 58. Rxb2 {[%emt 0:00:16]} Ne4+ {[%emt 0:00:57]} 59. Kf4 {[%emt 0:00:40]} Nd6 {[%emt 0:01:01]} 60. Rcb8 {[%emt 0:01:18]} Kf6 {[%emt 0:00:16]} 61. R8b6 {[%emt 0:00:37]} Ke7 {[%emt 0:00:49]} 62. Re2+ {[%emt 0:01:06]} Kd7 {[%emt 0:00:04]} 63. Rb4 {[%emt 0:00:26]} Ra5 {[%emt 0:00:27]} 64. Rd2 {[%emt 0:01:00]} Ra1 {[%emt 0:00:38]} 65. Rc2 {[%emt 0:03:20]} Ra5 {[%emt 0:00:38]} 66. Rd4 {[%emt 0:01:50]} Ra1 {[%emt 0:00:27]} 67. Rdd2 {[%emt 0:00:49]} Ra4+ {[%emt 0:00:18]} 68. Kf3 {[%emt 0:00:59]} Ra3+ {[%emt 0:00:04]} 69. Kf4 {[%emt 0:00:24]} Ra4+ {[%emt 0:00:04]} 70. Kf3 {[%emt 0:00:25]} Ra3+ {[%emt 0:00:04]} 71. Ke2 {[%emt 0:00:11]} Ne4 {[%emt 0:00:56]} 72. Rd3 {[%emt 0:00:42]} Ra5 {[%emt 0:00:50]} 73. Ke3 {[%emt 0:00:45]} Nf6 {[%emt 0:00:34]} 74. d6 {[%emt 0:01:02]} Ne8 {[%emt 0:00:48]} 75. Rb2 {[%emt 0:01:34]} Nxd6 {[%emt 0:00:58]} 76. Rb6 {[%emt 0:00:39]} Re5+ {[%emt 0:00:06]} 77. Kf4 {[%emt 0:00:13]} Re6 {[%emt 0:00:19]} 78. Rb7+ {[%emt 0:00:38]} 1/2-1/2

[Event "USA Junior-ch 2022"]
[Site "Saint Louis"]
[Date "2022.07.16"]
[Round "9.3"]
[White "Yip, Carissa"]
[Black "Yoo, Christopher Woojin"]
[Result "1/2-1/2"]
[ECO "C78"]
[WhiteElo "2416"]
[BlackElo "2550"]
[Annotator "ChessBase"]
[PlyCount "103"]
[EventDate "2022.07.07"]
[EventType "tourn"]
[EventCountry "USA"]
[SourceTitle "playchess.com"]
[Source "ChessBase"]
[SourceQuality "1"]
[TimeControl "40/5400+30:1800+30"]

1. e4 {[%emt 0:00:02]} e5 {[%emt 0:00:11]} 2. Nf3 {[%emt 0:00:03]} Nc6 {[%emt 0:00:04]} 3. Bb5 {[%emt 0:00:03]} a6 {[%emt 0:00:51]} 4. Ba4 {[%emt 0:00:20]} Nf6 {[%emt 0:00:05]} 5. O-O {[%emt 0:00:26]} Bc5 {[%emt 0:00:04]} 6. c3 {[%emt 0:06:19]} b5 {[%emt 0:00:04]} 7. Bb3 {[%emt 0:02:54]} d6 {[%emt 0:00:06]} 8. d4 {[%emt 0:00:05]} Bb6 {[%emt 0:00:03]} 9. a4 {[%emt 0:00:05]} Rb8 {[%emt 0:00:03]} 10. a5 {[%emt 0:00:05]} Ba7 {[%emt 0:00:05]} 11. h3 {[%emt 0:06:05]} Bb7 {[%emt 0:00:50]} 12. Be3 {[%emt 0:00:05]} Nxe4 {[%emt 0:02:09]} 13. Re1 {[%emt 0:00:04]} Ne7 {[%emt 0:09:39]} 14. dxe5 {[%emt 0:09:15]} Bxe3 {[%emt 0:00:08]} 15. Rxe3 {[%emt 0:00:03]} dxe5 {[%emt 0:04:29]} 16. Qe2 {[%emt 0:11:13]} Nc5 {[%emt 0:01:27]} 17. Bxf7+ {[%emt 0:02:19]} Kxf7 {[%emt 0:00:10]} 18. Ng5+ {[%emt 0:00:07]} Kg8 {[%emt 0:06:04]} 19. Rxe5 {[%emt 0:05:32]} Nd5 {[%emt 0:06:22]} 20. c4 {[%emt 0:05:40]} h6 {[%emt 0:06:04]} 21. cxd5 {[%emt 0:10:44]} hxg5 {[%emt 0:00:05]} 22. Nd2 {[%emt 0:06:28]} Qd6 {[%emt 0:06:41]} 23. Nf3 {[%emt 0:04:00]} g4 {[%emt 0:02:39]} 24. Ng5 {[%emt 0:08:07]} gxh3 {[%emt 0:00:48]} 25. b4 {[%emt 0:00:29]} hxg2 {[%emt 0:07:09]} 26. bxc5 {[%emt 0:00:02]} Bxd5 {[%emt 0:00:33]} 27. f3 {[%emt 0:01:51]} Qxc5+ {[%emt 0:03:41]} 28. Kxg2 {[%emt 0:00:05]} Rh6 {[%emt 0:06:55]} 29. Qd3 {[%emt 0:08:00]} c6 {[%emt 0:02:43]} 30. Rae1 {[%emt 0:03:44]} Rf8 {[%emt 0:00:40]} 31. Re8 {[%emt 0:02:45]} Rh5 {[%emt 0:05:36]} 32. Rxf8+ {[%emt 0:00:03]} Qxf8 {[%emt 0:00:05]} 33. Re5 {[%emt 0:00:03]} Rxg5+ {[%emt 0:03:15]} 34. Rxg5 {[%emt 0:00:04]} Qf4 {[%emt 0:00:56]} 35. Rg3 {[%emt 0:01:09]} Qe5 {[%emt 0:01:16]} 36. Rh3 {[%emt 0:01:16]} c5 {[%emt 0:02:43]} 37. Qh7+ {[%emt 0:01:00]} Kf7 {[%emt 0:00:42]} 38. Qh5+ {[%emt 0:01:51]} Qxh5 {[%emt 0:01:48]} 39. Rxh5 {[%emt 0:00:03]} Ke6 {[%emt 0:00:08]} 40. Kf2 {[%emt 0:01:36]} b4 {[%emt 0:05:22]} 41. Ke3 {[%emt 0:30:17]} c4 {[%emt 0:32:37]} 42. Kd4 {[%emt 0:00:00]} Bxf3 {[%emt 0:00:00]} 43. Re5+ {[%emt 0:00:00]} Kd6 {[%emt 0:00:00]} 44. Rg5 {[%emt 0:00:00]} c3 {[%emt 0:00:00]} 45. Rg6+ {[%emt 0:00:00]} Kc7 {[%emt 0:00:00]} 46. Rxg7+ {[%emt 0:00:00]} Kc6 {[%emt 0:00:00]} 47. Rg5 {[%emt 0:00:00]} Be2 {[%emt 0:00:00]} 48. Rc5+ {[%emt 0:00:00]} Kd6 {[%emt 0:00:00]} 49. Rd5+ {[%emt 0:00:00]} Kc6 {[%emt 0:00:00]} 50. Rc5+ {[%emt 0:00:00]} Kd6 {[%emt 0:00:00]} 51. Rd5+ {[%emt 0:00:00]} Kc6 {[%emt 0:00:00]} 52. Rc5+ {[%emt 0:00:00]} 1/2-1/2

[Event "USA Junior-ch 2022"]
[Site "Saint Louis"]
[Date "2022.07.16"]
[Round "9.4"]
[White "Jacobson, Brandon"]
[Black "Wang, Justin"]
[Result "1/2-1/2"]
[ECO "D32"]
[WhiteElo "2544"]
[BlackElo "2469"]
[Annotator "ChessBase"]
[PlyCount "75"]
[EventDate "2022.07.07"]
[EventType "tourn"]
[EventCountry "USA"]
[SourceTitle "playchess.com"]
[Source "ChessBase"]
[SourceQuality "1"]
[TimeControl "40/5400+30:1800+30"]

1. Nf3 {[%emt 0:00:03]} Nf6 {[%emt 0:00:11]} 2. c4 {[%emt 0:00:08]} e6 {[%emt 0:00:09]} 3. Nc3 {[%emt 0:00:07]} d5 {[%emt 0:00:34]} 4. e3 {[%emt 0:00:07]} Be7 {[%emt 0:00:59]} 5. b3 {[%emt 0:00:08]} c5 {[%emt 0:00:33]} 6. Bb2 {[%emt 0:00:38]} Nc6 {[%emt 0:00:13]} 7. cxd5 {[%emt 0:00:55]} exd5 {[%emt 0:00:25]} 8. d4 {[%emt 0:00:09]} Bg4 {[%emt 0:11:29]} 9. dxc5 {[%emt 0:01:57]} Bxc5 {[%emt 0:00:18]} 10. Be2 {[%emt 0:00:13]} a6 {[%emt 0:15:02]} 11. O-O {[%emt 0:00:35]} O-O {[%emt 0:00:48]} 12. Rc1 {[%emt 0:02:16]} Ba7 {[%emt 0:01:06]} 13. h3 {[%emt 0:00:05]} Bh5 {[%emt 0:00:29]} 14. Nh4 {[%emt 0:00:21]} Bxe2 {[%emt 0:13:36]} 15. Nxe2 {[%emt 0:00:03]} Re8 {[%emt 0:03:03]} 16. Nf3 {[%emt 0:06:08]} Re6 {[%emt 0:02:13]} 17. Nfd4 {[%emt 0:08:23]} Nxd4 {[%emt 0:00:59]} 18. Nxd4 {[%emt 0:00:10]} Bxd4 {[%emt 0:04:20]} 19. Qxd4 {[%emt 0:00:08]} Rc8 {[%emt 0:00:22]} 20. Qd3 {[%emt 0:08:57]} Rec6 {[%emt 0:01:46]} 21. Rxc6 {[%emt 0:07:37]} Rxc6 {[%emt 0:00:25]} 22. Rd1 {[%emt 0:00:05]} Rd6 {[%emt 0:01:27]} 23. Be5 {[%emt 0:06:58]} Rd7 {[%emt 0:00:54]} 24. Qf5 {[%emt 0:01:15]} Ne4 {[%emt 0:10:42]} 25. Qg4 {[%emt 0:00:46]} f6 {[%emt 0:00:32]} 26. Bd4 {[%emt 0:09:46]} Kh8 {[%emt 0:15:13]} 27. Qf5 {[%emt 0:08:12]} Rd6 {[%emt 0:03:17]} 28. f3 {[%emt 0:05:41]} Ng3 {[%emt 0:00:36]} 29. Qd3 {[%emt 0:00:11]} Qc8 {[%emt 0:00:11]} 30. b4 {[%emt 0:03:47]} Rc6 {[%emt 0:01:35]} 31. Bc5 {[%emt 0:02:33]} b6 {[%emt 0:12:33]} 32. Qxd5 {[%emt 0:28:08]} h6 {[%emt 0:00:30]} 33. Qd8+ {[%emt 0:00:00]} Qxd8 {[%emt 0:00:00]} 34. Rxd8+ {[%emt 0:00:00]} Kh7 {[%emt 0:01:00]} 35. Bd4 {[%emt 0:01:30]} Rc1+ {[%emt 0:00:00]} 36. Kf2 {[%emt 0:00:30]} Nh1+ {[%emt 0:00:00]} 37. Ke2 {[%emt 0:00:00]} Rc2+ {[%emt 0:01:30]} 38. Kf1 {[%emt 0:00:00]} 1/2-1/2

[Event "USA Junior-ch 2022"]
[Site "Saint Louis"]
[Date "2022.07.16"]
[Round "9.5"]
[White "Liang, Awonder"]
[Black "Daggupati, Balaji"]
[Result "1/2-1/2"]
[ECO "B40"]
[WhiteElo "2625"]
[BlackElo "2488"]
[Annotator "ChessBase"]
[PlyCount "67"]
[EventDate "2022.07.07"]
[EventType "tourn"]
[EventCountry "USA"]
[SourceTitle "playchess.com"]
[Source "ChessBase"]
[SourceQuality "1"]
[TimeControl "40/5400+30:1800+30"]

1. e4 {[%emt 0:00:01]} c5 {[%emt 0:00:05]} 2. Nf3 {[%emt 0:00:05]} e6 {[%emt 0:00:04]} 3. g3 {[%emt 0:00:05]} d5 {[%emt 0:00:30]} 4. d3 {[%emt 0:00:02]} dxe4 {[%emt 0:10:34]} 5. dxe4 {[%emt 0:00:21]} Qxd1+ {[%emt 0:00:36]} 6. Kxd1 {[%emt 0:00:01]} Nc6 {[%emt 0:01:09]} 7. c3 {[%emt 0:02:02]} b6 {[%emt 0:02:45]} 8. Bb5 {[%emt 0:05:59]} Bb7 {[%emt 0:00:40]} 9. Ke2 {[%emt 0:00:02]} O-O-O {[%emt 0:01:39]} 10. Bf4 {[%emt 0:02:38]} h6 {[%emt 0:05:47]} 11. h4 {[%emt 0:01:24]} Bd6 {[%emt 0:14:47]} 12. Bxd6 {[%emt 0:01:46]} Rxd6 {[%emt 0:00:05]} 13. Nbd2 {[%emt 0:00:48]} Nge7 {[%emt 0:02:15]} 14. a4 {[%emt 0:04:01]} Kc7 {[%emt 0:03:26]} 15. Nc4 {[%emt 0:03:09]} Rdd8 {[%emt 0:01:11]} 16. a5 {[%emt 0:00:25]} Nc8 {[%emt 0:07:13]} 17. Rhc1 {[%emt 0:24:59]} Nd6 {[%emt 0:06:57]} 18. Nxd6 {[%emt 0:00:10]} Rxd6 {[%emt 0:00:11]} 19. axb6+ {[%emt 0:02:26]} axb6 {[%emt 0:00:51]} 20. Bxc6 {[%emt 0:06:05]} Bxc6 {[%emt 0:00:05]} 21. Ne5 {[%emt 0:00:05]} Rf8 {[%emt 0:02:32]} 22. Ra7+ {[%emt 0:00:34]} Bb7 {[%emt 0:00:21]} 23. Nc4 {[%emt 0:02:32]} Rd7 {[%emt 0:05:24]} 24. e5 {[%emt 0:00:36]} b5 {[%emt 0:06:30]} 25. Nd6 {[%emt 0:00:08]} Kb6 {[%emt 0:00:06]} 26. Ra3 {[%emt 0:00:10]} f6 {[%emt 0:02:07]} 27. Rca1 {[%emt 0:01:18]} Rfd8 {[%emt 0:05:11]} 28. Ra5 {[%emt 0:03:53]} fxe5 {[%emt 0:04:41]} 29. Rxb5+ {[%emt 0:02:45]} Kc6 {[%emt 0:00:04]} 30. Rxb7 {[%emt 0:00:32]} Rxd6 {[%emt 0:01:39]} 31. Rb3 {[%emt 0:05:30]} Rd2+ {[%emt 0:01:12]} 32. Ke3 {[%emt 0:00:02]} R8d3+ {[%emt 0:01:31]} 33. Ke4 {[%emt 0:00:01]} c4 {[%emt 0:02:11]} 34. Ra6+ {[%emt 0:00:02]} 1/2-1/2